bitfinex/quotes_ETHUSD_20241120
["timestamp","ask_amount","ask_price","bid_price","bid_amount"]
[1732069701150,3.0,3103.5,3102.9,0.7863]
[1732069701451,6.22218,3103.5,3102.9,0.7863]
[1732069702341,3.0,3103.5,3102.9,0.7863]
[1732069703935,0.403654,3103.6,3102.9,0.7863]
[1732069704138,3.0,3103.4,3102.9,0.7863]
[1732069704394,3.0,3103.4,3103.0,0.03895088]
[1732069704651,3.0,3103.4,3102.9,0.7863]
[1732069705056,3.22238,3103.3,3102.9,0.7863]
[1732069705237,0.622238,3103.2,3102.9,0.7863]
[1732069705879,3.0,3103.4,3102.9,0.7863]
[1732069706208,3.0,3103.8,3103.0,0.01]
[1732069706339,3.0,3103.8,3102.9,0.7863]
[1732069706340,3.0,3103.6,3102.9,0.7863]
[1732069706539,0.622203,3103.5,3102.9,0.7863]
[1732069707890,0.623003,3103.5,3102.9,0.7863]
[1732069708187,3.0,3103.3,3102.9,0.7863]
[1732069708354,0.7565,3103.3,3102.7,0.767]
[1732069708697,3.22265,3103.1,3102.7,0.767]
[1732069708980,3.322265,3103.0,3102.7,0.767]
[1732069709562,0.322265,3103.0,3102.7,0.767]
[1732069710266,3.0,3103.2,3102.7,0.767]
[1732069710856,3.0,3103.3,3102.7,0.767]
[1732069711158,6.22238,3103.3,3102.7,0.767]
[1732069711358,0.944465,3103.2,3102.7,0.767]
[1732069714080,3.10224418,3103.5,3102.7,0.767]
[1732069714276,3.0,3103.5,3102.7,0.767]
[1732069714477,6.22218,3103.5,3102.7,0.767]
[1732069714684,3.0,3103.5,3102.7,0.767]
[1732069715007,3.0,3103.3,3102.7,0.767]
[1732069715306,6.22238,3103.3,3102.7,0.767]
[1732069715482,3.0,3103.4,3102.7,0.767]
[1732069715717,0.698657,3103.5,3103.2,0.01]
[1732069715917,3.7827,3104.2,3103.3,0.7501]
[1732069715918,0.7827,3104.2,3103.3,0.7501]
[1732069716533,4.00418,3104.2,3103.3,0.7501]
[1732069716832,4.10261538,3104.2,3103.3,0.7501]
[1732069717135,3.22166,3104.0,3103.3,0.7501]
[1732069717347,6.22181,3103.9,3103.3,0.7501]
[1732069717501,0.88113538,3104.2,3102.7,0.01]
[1732069717502,3.0,3103.5,3102.9,0.7501]
[1732069717697,0.622212,3103.4,3102.9,0.7501]
[1732069717905,3.22229,3103.4,3102.9,0.7501]
[1732069718597,3.0,3103.1,3102.9,0.7501]
[1732069719840,3.0,3103.1,3102.6,0.7549]
[1732069720345,3.0,3103.3,3102.6,0.7549]
[1732069721491,6.22239,3103.3,3102.6,0.7549]
[1732069721846,3.0008,3103.5,3102.6,0.7549]
[1732069722634,0.0008,3103.5,3102.8,0.7549]
[1732069722741,3.22188,3103.8,3103.0,0.7549]
[1732069722946,0.322188,3103.7,3103.0,0.7649]
[1732069723271,3.22175,3103.9,3103.1,0.01]
[1732069723469,3.22175,3103.9,3103.2,0.7549]
[1732069723691,3.22255,3103.9,3103.2,0.7549]
[1732069723836,0.41524764,3103.8,3103.2,0.7549]
[1732069724482,0.0008,3104.3,3103.4,0.7549]
[1732069724737,3.22124,3104.4,3103.4,0.7549]
[1732069724851,0.405324,3104.3,3103.4,0.7549]
[1732069726088,3.405324,3104.3,3103.4,0.7549]
[1732069727349,0.405324,3104.3,3103.6,0.01]
[1732069727580,0.405324,3104.3,3103.7,0.7549]
[1732069732587,0.3627374,3104.2,3103.7,0.7549]
[1732069735144,3.3627374,3104.2,3103.7,0.7549]
[1732069737092,3.22192,3103.8,3103.5,0.7956]
[1732069737296,3.22192,3103.8,3103.3,0.8056]
[1732069737449,0.322192,3103.7,3103.3,0.7956]
[1732069741050,3.22216,3103.5,3103.0,0.8056]
[1732069741855,3.22216,3103.5,3103.0,0.7956]
[1732069742091,3.22216,3103.5,3103.0,0.8056]
[1732069742747,3.22216,3103.5,3103.0,0.7956]
[1732069742947,3.22216,3103.5,3103.0,0.8056]
[1732069743149,0.701426,3103.4,3103.0,0.8056]
[1732069743754,0.701426,3103.4,3103.0,0.7956]
[1732069744291,3.0,3103.6,3103.0,0.8056]
[1732069745927,3.0008,3103.8,3103.0,0.8156]
[1732069746140,3.71215559,3103.8,3103.0,0.8156]
[1732069747324,3.71215559,3103.8,3103.1,0.7956]
[1732069747646,6.93406559,3103.8,3103.1,0.7956]
[1732069747812,3.71215559,3103.8,3103.1,0.7956]
[1732069748057,3.0,3103.5,3103.1,0.7956]
[1732069749035,0.0008,3103.6,3103.1,0.7956]
[1732069749120,0.39422456,3103.6,3103.1,0.7956]
[1732069749458,6.61633456,3103.6,3103.1,0.7956]
[1732069750822,3.22219,3103.5,3103.1,0.7956]
[1732069751454,0.0008,3103.5,3103.1,0.7956]
[1732069751976,0.0008,3103.5,3102.8,0.8312]
[1732069751977,3.22244,3103.3,3102.8,0.8312]
[1732069752188,3.2226,3103.1,3102.8,0.8312]
[1732069752460,3.32226,3103.0,3102.5,0.8312]
[1732069752629,3.22293,3102.8,3102.5,0.8312]
[1732069752828,3.22373,3102.8,3102.5,0.8312]
[1732069753122,3.878329,3102.8,3102.2,0.8312]
[1732069754302,0.655399,3102.8,3102.2,0.8312]
[1732069754726,0.0008,3102.8,3102.2,0.8312]
[1732069755419,0.0008,3102.8,3102.3,0.01]
[1732069755623,0.0008,3102.8,3102.5,0.01]
[1732069755875,3.0,3103.4,3102.7,0.01]
[1732069756158,0.622218,3103.3,3102.8,0.8312]
[1732069756390,3.22213,3103.6,3102.8,0.8312]
[1732069757244,4.04044,3103.7,3102.8,0.8312]
[1732069757508,4.45434522,3103.7,3102.8,0.8312]
[1732069757784,3.0,3103.6,3102.8,0.8312]
[1732069758085,3.0,3103.6,3102.9,0.01]
[1732069758247,3.0,3103.6,3103.0,0.8312]
[1732069758529,3.622284,3103.6,3103.0,0.8312]
[1732069758896,0.622284,3103.6,3103.0,0.8312]
[1732069759057,0.0008,3103.7,3103.0,0.8312]
[1732069759991,3.0,3103.8,3103.0,0.8312]
[1732069760492,6.22185,3103.8,3103.0,0.8312]
[1732069761764,6.3198686,3104.0,3103.0,0.8312]
[1732069762091,3.0,3103.8,3103.0,0.8312]
[1732069762388,1.03598986,3103.9,3103.0,0.8312]
[1732069762593,3.0,3103.8,3103.0,0.8312]
[1732069764149,3.0,3103.6,3103.0,0.8312]
[1732069764566,3.0,3103.8,3103.0,0.8312]
[1732069764934,0.0008,3103.9,3103.5,0.7822]
[1732069765179,12.73552,3105.0,3103.8,0.7822]
[1732069765180,0.7835,3104.6,3103.8,0.7822]
[1732069765812,4.00454,3104.6,3103.8,0.7822]
[1732069766087,0.7835,3104.6,3103.8,0.7822]
[1732069766589,3.7835,3104.6,3103.8,0.7822]
[1732069766895,0.700449,3104.5,3103.9,0.01]
[1732069767115,0.0008,3104.7,3104.0,0.7822]
[1732069767399,6.22162,3104.8,3104.0,0.7822]
[1732069767553,0.71039518,3104.7,3104.0,0.7822]
[1732069767760,0.71119518,3104.7,3104.0,0.7822]
[1732069767990,0.71039518,3104.7,3104.0,0.7822]
[1732069768196,0.71119518,3104.7,3104.0,0.7822]
[1732069768431,0.69320152,3104.6,3104.0,0.7822]
[1732069771851,0.7835,3105.5,3104.6,0.01]
[1732069772027,0.88508849,3105.5,3104.7,0.7822]
[1732069772195,0.7822,3105.3,3104.7,0.7822]
[1732069772562,0.783,3105.3,3104.2,0.01]
[1732069772829,3.22068,3105.0,3104.3,0.7822]
[1732069772991,3.400418,3104.9,3104.3,0.7822]
[1732069773399,0.400418,3104.9,3104.3,0.7922]
[1732069773822,0.400418,3104.9,3104.3,0.8022]
[1732069774192,0.7835,3105.1,3104.3,0.8022]
[1732069774468,7.00408,3105.1,3104.3,0.8022]
[1732069774633,7.00408,3105.1,3104.3,0.7922]
[1732069774945,3.0,3104.9,3104.3,0.7922]
[1732069775149,3.0,3104.9,3104.3,0.7822]
[1732069775337,0.622068,3104.8,3104.3,0.7822]
[1732069778193,3.22151,3104.2,3103.6,0.7822]
[1732069778730,3.0,3104.3,3103.7,0.01]
[1732069778776,3.7835,3104.5,3103.7,0.02]
[1732069779081,0.700452,3104.4,3103.7,0.02]
[1732069779251,0.700452,3104.4,3103.8,0.8332]
[1732069779440,3.0,3104.7,3104.1,0.8332]
[1732069781009,3.22111,3104.6,3104.1,0.8332]
[1732069781174,3.0,3104.5,3103.8,0.8332]
[1732069781364,3.322111,3104.5,3103.8,0.8332]
[1732069781696,6.22144,3104.2,3103.3,0.8332]
[1732069783158,3.0,3103.9,3103.3,0.8332]
[1732069783412,0.622172,3103.8,3103.3,0.8332]
[1732069783860,3.0,3103.8,3103.3,0.8332]
[1732069784396,6.22185,3103.8,3103.3,0.8332]
[1732069785205,3.0,3103.8,3103.3,0.8332]
[1732069785355,3.22203,3103.7,3103.3,0.8332]
[1732069785571,3.22217,3103.5,3103.0,0.8332]
[1732069785999,0.403433,3103.6,3103.0,0.8332]
[1732069786305,3.22228,3103.4,3103.0,0.8332]
[1732069787411,0.0008,3103.5,3103.0,0.8332]
[1732069787605,0.6625553,3103.4,3103.0,0.8332]
[1732069787810,0.6625553,3103.4,3103.0,0.8432]
[1732069788366,0.0008,3103.5,3103.0,0.8432]
[1732069788568,3.0,3103.8,3103.0,0.8432]
[1732069788904,3.0,3103.8,3103.2,0.01]
[1732069789315,0.622178,3103.7,3103.3,0.8332]
[1732069789508,6.22166,3104.0,3103.3,0.8332]
[1732069789678,0.8035,3103.9,3102.8,0.01]
[1732069789886,3.2226,3103.1,3102.5,0.8332]
[1732069790072,3.0,3103.0,3102.5,0.8332]
[1732069790362,6.22268,3103.0,3102.5,0.8332]
[1732069790518,6.844948,3103.0,3102.5,0.8332]
[1732069790801,0.622268,3103.0,3102.5,0.8332]
[1732069791390,3.0,3103.1,3102.5,0.8332]
[1732069791864,6.22261,3103.1,3102.5,0.8332]
[1732069792569,3.22269,3103.0,3102.5,0.8332]
[1732069792769,3.0,3102.9,3102.5,0.8332]
[1732069793002,3.0,3103.1,3102.5,0.8332]
[1732069793220,3.0,3102.9,3102.5,0.8332]
[1732069793568,3.22291,3102.8,3102.5,0.8332]
[1732069793866,3.22291,3102.8,3102.2,0.01]
[1732069793867,3.22311,3102.6,3102.2,0.8432]
[1732069794068,3.22311,3102.6,3102.2,0.8332]
[1732069794580,6.545311,3102.7,3102.2,0.8332]
[1732069796710,0.322291,3102.7,3102.2,0.8332]
[1732069797290,3.545311,3102.7,3102.2,0.8332]
[1732069798087,3.545311,3102.7,3102.2,0.8432]
[1732069798289,3.22311,3102.6,3102.2,0.8332]
[1732069798489,3.67524677,3102.6,3102.2,0.8332]
[1732069798765,3.22311,3102.6,3102.2,0.8432]
[1732069798916,3.545311,3102.7,3102.2,0.8432]
[1732069799530,0.322291,3102.7,3102.2,0.8432]
[1732069799826,6.2229,3102.8,3102.2,0.8432]
[1732069800028,3.0,3102.8,3102.2,0.8432]
[1732069800319,3.0008,3103.0,3102.2,0.8532]
[1732069800616,3.0,3102.7,3102.2,0.8532]
[1732069800869,3.0,3102.8,3102.2,0.8532]
[1732069801115,3.223,3102.7,3102.2,0.8432]
[1732069801322,4.167588,3102.7,3102.2,0.8532]
[1732069801477,4.167588,3102.7,3102.2,0.8432]
[1732069802115,4.167588,3102.7,3102.2,0.8532]
[1732069802418,4.168388,3102.7,3102.2,0.8432]
[1732069802619,3.9399488,3102.6,3102.2,0.8332]
[1732069803397,3.7168388,3102.6,3102.2,0.8332]
[1732069803901,6.9399688,3102.6,3102.2,0.8332]
[1732069804623,3.7168388,3102.6,3102.2,0.8332]
[1732069806847,3.0,3101.9,3101.6,0.8332]
[1732069807310,3.0,3101.9,3101.3,0.8332]
[1732069807487,3.8043,3101.9,3101.4,0.01]
[1732069807685,3.8043,3101.9,3101.3,0.8332]
[1732069807686,3.846386,3101.8,3101.3,0.8332]
[1732069807882,3.22414,3101.6,3101.3,0.8332]
[1732069808085,3.0,3101.5,3100.9,0.8332]
[1732069808331,3.22449,3101.3,3100.9,0.8332]
[1732069808527,3.22435,3101.4,3100.9,0.8332]
[1732069808730,3.0,3101.3,3100.9,0.8332]
[1732069809062,3.0,3101.2,3100.9,0.8332]
[1732069809543,3.0,3101.0,3100.6,0.8332]
[1732069809734,3.0,3100.7,3100.3,0.8432]
[1732069809932,3.2252,3100.6,3100.3,0.8332]
[1732069810368,3.0,3100.5,3100.3,0.8332]
[1732069810631,3.0,3100.7,3100.3,0.8332]
[1732069810783,6.928007,3100.7,3100.3,0.8332]
[1732069810984,3.702927,3100.7,3100.3,0.8332]
[1732069811223,3.0,3100.3,3100.1,0.7855]
[1732069811530,3.0,3100.3,3099.8,0.8055]
[1732069811833,0.622539,3100.2,3099.8,0.7955]
[1732069811994,0.622539,3100.2,3098.5,0.35593282]
[1732069811995,1.419739,3100.2,3099.5,0.01]
[1732069812324,3.22581,3100.0,3099.4,0.7955]
[1732069812557,3.0,3099.9,3099.4,0.7855]
[1732069812723,3.322581,3099.9,3099.4,0.7855]
[1732069813023,3.323381,3099.9,3099.4,0.7855]
[1732069813228,6.549311,3099.9,3099.4,0.7855]
[1732069813529,3.323381,3099.9,3099.4,0.7855]
[1732069813739,3.0,3099.8,3099.4,0.7855]
[1732069813893,0.0008,3100.5,3099.8,0.01]
[1732069814294,3.0,3100.3,3099.8,0.01]
[1732069814642,0.702266,3100.2,3099.8,0.01]
[1732069814806,6.22524,3100.6,3099.8,0.01]
[1732069815018,3.798,3100.7,3099.8,0.01]
[1732069815202,3.798,3100.7,3099.9,0.01]
[1732069815523,0.702301,3100.6,3099.9,0.01]
[1732069815885,0.702301,3100.6,3100.0,0.7888]
[1732069816023,0.0008,3100.7,3100.1,0.01]
[1732069816184,0.0008,3100.7,3100.1,0.02]
[1732069816385,3.22457,3101.2,3100.4,0.7888]
[1732069816661,3.59159692,3101.4,3100.5,0.02]
[1732069816836,0.35923769,3101.3,3100.7,0.01]
[1732069817022,0.35923769,3101.3,3100.8,0.7888]
[1732069817252,0.0008,3101.3,3101.0,0.01]
[1732069817459,3.22379,3102.0,3101.3,0.01]
[1732069817657,0.8068,3102.1,3101.3,0.02]
[1732069817942,0.403038,3102.0,3101.3,0.02]
[1732069818151,0.403838,3102.0,3101.3,0.02]
[1732069818320,0.403038,3102.0,3101.3,0.02]
[1732069818504,3.22354,3102.2,3101.3,0.02]
[1732069818707,0.0008,3102.2,3101.3,0.02]
[1732069819034,3.22395,3101.8,3101.3,0.01]
[1732069819357,3.322395,3101.7,3101.3,0.02]
[1732069819560,0.7888,3101.8,3101.3,0.02]
[1732069820354,0.7888,3101.8,3101.4,0.7888]
[1732069821154,0.7888,3101.8,3101.5,0.01]
[1732069822152,3.0,3101.7,3101.1,0.7888]
[1732069822336,0.781961,3101.6,3101.1,0.7988]
[1732069822549,3.781961,3101.6,3101.1,0.7888]
[1732069822711,7.006111,3101.6,3101.1,0.7888]
[1732069822912,0.7006111,3101.5,3101.1,0.7888]
[1732069823710,0.7006111,3101.5,3101.1,0.7988]
[1732069824311,0.7888,3101.8,3101.1,0.7988]
[1732069824623,0.7888,3101.8,3101.6,0.8104]
[1732069825665,7.02366,3102.4,3101.6,0.8104]
[1732069825860,0.8104,3102.1,3101.6,0.8104]
[1732069826621,3.22379,3102.0,3101.6,0.8104]
[1732069826835,0.8003,3101.8,3101.0,0.8104]
[1732069827069,3.0,3101.5,3101.0,0.8104]
[1732069827306,3.0,3101.5,3100.7,0.01]
[1732069827307,3.8003,3101.3,3100.7,0.8104]
[1732069827588,3.8003,3101.3,3100.7,0.8204]
[1732069827589,3.8011,3101.3,3100.7,0.8204]
[1732069827788,7.02556,3101.3,3100.7,0.8204]
[1732069828069,0.702556,3101.2,3100.7,0.8104]
[1732069828375,3.0,3101.1,3100.7,0.8104]
[1732069828529,3.0008,3101.1,3100.7,0.8104]
[1732069828868,3.0008,3101.1,3100.5,0.01]
[1732069829025,4.0960706,3101.1,3100.4,0.8104]
[1732069829224,6.22495,3100.9,3100.4,0.8104]
[1732069829427,6.22575,3100.9,3100.4,0.8104]
[1732069830402,0.0008,3100.9,3100.4,0.8104]
[1732069830667,0.0008,3100.9,3100.4,0.8204]
[1732069830866,3.0,3101.1,3100.4,0.8204]
[1732069831163,0.622455,3101.0,3100.4,0.8204]
[1732069831600,3.0,3100.9,3100.4,0.8104]
[1732069831732,3.0,3100.7,3100.4,0.8104]
[1732069831925,3.0,3100.9,3100.4,0.8104]
[1732069832156,6.22567,3100.9,3100.4,0.8204]
[1732069832371,1.0072925,3100.8,3100.4,0.8104]
[1732069832685,1.0072925,3100.8,3100.4,0.8204]
[1732069833051,0.0008,3100.9,3100.4,0.8204]
[1732069833389,3.0,3101.1,3100.4,0.8304]
[1732069833606,6.22467,3101.1,3100.4,0.8304]
[1732069833885,0.944923,3101.0,3100.4,0.8304]
[1732069834094,3.0,3100.9,3100.4,0.8204]
[1732069834684,3.0,3100.9,3100.4,0.01]
[1732069835471,0.0008,3101.0,3100.4,0.02]
[1732069835667,0.0008,3101.0,3100.5,0.8104]
[1732069835841,0.623336,3101.0,3100.5,0.8104]
[1732069836585,3.0,3101.3,3100.6,0.01]
[1732069836791,11.98508,3101.5,3100.6,0.02]
[1732069836947,1.198497,3101.4,3100.8,0.01]
[1732069837457,1.198497,3101.4,3101.0,0.8104]
[1732069837648,0.0008,3101.5,3101.0,0.8104]
[1732069837861,0.0008,3101.5,3101.1,0.01]
[1732069838144,0.0008,3101.5,3101.0,0.8104]
[1732069838573,3.0,3101.2,3100.8,0.01]
[1732069838895,0.3,3101.1,3100.8,0.01]
[1732069839069,3.0008,3101.3,3100.8,0.01]
[1732069841213,0.0008,3101.3,3100.8,0.01]
[1732069841869,3.0008,3101.3,3100.8,0.01]
[1732069842110,6.22527,3101.3,3100.8,0.01]
[1732069842283,0.58240704,3101.2,3100.8,0.01]
[1732069842914,3.0008,3101.3,3100.8,0.01]
[1732069843135,3.22483,3101.0,3100.7,0.8104]
[1732069843300,3.22509,3100.7,3100.2,0.8158]
[1732069843473,0.0008,3100.7,3100.3,0.02]
[1732069843719,0.0008,3100.7,3100.2,0.8158]
[1732069843910,3.0,3100.6,3100.2,0.8158]
[1732069844172,6.22525,3100.6,3100.2,0.8158]
[1732069844279,3.0,3100.4,3099.9,0.01]
[1732069844472,3.0008,3100.4,3099.9,0.01]
[1732069844925,3.0,3100.4,3099.8,0.8158]
[1732069845240,3.0,3100.4,3100.0,0.01]
[1732069845241,3.0008,3100.4,3100.0,0.01]
[1732069845390,0.0008,3100.6,3100.0,0.01]
[1732069845586,0.0008,3100.6,3100.2,0.01]
[1732069845903,0.0008,3100.6,3100.1,0.7761]
[1732069845904,3.0,3100.5,3100.1,0.7761]
[1732069846278,3.623406,3100.5,3100.1,0.7761]
[1732069846460,3.0,3100.7,3100.1,0.7861]
[1732069846775,3.0,3100.8,3100.2,0.01]
[1732069847115,0.0008,3100.8,3100.2,0.01]
[1732069847322,3.0,3100.7,3100.2,0.01]
[1732069848200,3.0,3100.4,3100.1,0.7861]
[1732069848819,0.8116,3100.7,3099.8,0.7761]
[1732069849024,3.22588,3100.0,3099.6,0.01]
[1732069849322,6.848518,3099.9,3099.5,0.7761]
[1732069849678,3.0,3099.7,3099.5,0.7761]
[1732069850229,3.623388,3099.9,3099.5,0.7761]
[1732069851324,0.623388,3099.9,3099.5,0.7761]
[1732069851517,0.0008,3099.9,3099.5,0.7761]
[1732069852702,3.0,3100.2,3099.5,0.7761]
[1732069852895,6.22567,3100.2,3099.5,0.7761]
[1732069853514,3.0,3100.2,3099.6,0.01]
[1732069854277,0.622632,3100.2,3099.6,0.01]
[1732069854502,3.0,3100.2,3099.6,0.01]
[1732069854865,6.22562,3100.2,3099.6,0.01]
[1732069855146,3.22593,3099.9,3099.5,0.7761]
[1732069855314,3.0,3099.8,3099.4,0.01]
[1732069855514,3.22625,3099.6,3099.3,0.7756]
[1732069855850,0.0008,3099.6,3099.3,0.7756]
[1732069856201,0.0008,3099.6,3099.1,0.01]
[1732069856202,3.0,3099.5,3099.1,0.01]
[1732069856537,6.22637,3099.5,3099.1,0.01]
[1732069856791,6.22717,3099.5,3099.0,0.7856]
[1732069857213,0.0008,3099.5,3099.1,0.01]
[1732069858952,3.0,3099.8,3099.2,0.01]
[1732069859139,3.0,3100.0,3099.3,0.7756]
[1732069859339,0.40819458,3099.9,3099.3,0.7756]
[1732069859633,3.0008,3100.0,3099.5,0.01]
[1732069859819,0.0008,3100.0,3099.5,0.01]
[1732069860798,3.0008,3100.0,3099.4,0.01]
[1732069861037,3.0,3100.0,3099.4,0.01]
[1732069861205,3.0,3100.0,3099.6,0.01]
[1732069861607,3.0008,3100.2,3099.6,0.01]
[1732069861840,3.699091,3100.2,3099.6,0.01]
[1732069862348,3.699091,3100.2,3099.4,0.01]
[1732069862349,3.0,3099.8,3099.4,0.7856]
[1732069862544,3.0,3099.8,3099.4,0.7756]
[1732069862911,3.0,3099.8,3099.4,0.7856]
[1732069863130,0.0008,3099.9,3099.4,0.7856]
[1732069863652,3.0,3100.0,3099.4,0.7856]
[1732069863957,3.0,3100.1,3099.5,0.01]
[1732069864185,3.0,3100.2,3099.5,0.01]
[1732069866928,3.0,3100.0,3099.5,0.01]
[1732069867315,0.0008,3100.0,3099.5,0.01]
[1732069870053,0.30088,3100.0,3099.5,0.01]
[1732069870377,3.0,3099.8,3099.4,0.7856]
[1732069870576,0.0008,3099.8,3099.4,0.7856]
[1732069870720,6.22663,3100.0,3099.4,0.7856]
[1732069871126,6.22583,3100.0,3099.4,0.7856]
[1732069871327,0.622663,3099.9,3099.4,0.7856]
[1732069871578,0.623463,3099.9,3099.4,0.7856]
[1732069871738,0.623463,3099.9,3099.4,0.7756]
[1732069872060,3.0,3100.3,3099.6,0.7507]
[1732069872435,3.2255,3100.3,3099.6,0.7507]
[1732069872761,3.69829,3100.2,3099.6,0.7507]
[1732069873324,3.69909,3100.2,3099.6,0.7507]
[1732069873721,0.69909,3100.2,3099.4,0.7507]
[1732069873965,3.0,3099.8,3099.4,0.7507]
[1732069874124,3.0008,3099.8,3099.4,0.7507]
[1732069874323,3.0,3099.8,3099.4,0.7507]
[1732069874737,3.0008,3099.8,3099.4,0.7507]
[1732069874835,3.0008,3099.8,3099.1,0.7507]
[1732069874836,3.0,3099.5,3099.1,0.7507]
[1732069875363,3.0,3099.5,3099.0,0.01]
[1732069875664,6.22636,3099.5,3099.0,0.01]
[1732069875866,3.0,3099.3,3099.0,0.01]
[1732069876166,0.698516,3099.2,3098.8,0.7507]
[1732069876553,0.699316,3099.2,3098.8,0.7507]
[1732069876727,0.0008,3099.2,3098.8,0.7507]
[1732069877641,3.0008,3099.2,3098.8,0.7507]
[1732069878757,3.0008,3099.2,3098.4,0.7507]
[1732069878758,0.7587,3099.1,3098.4,0.7507]
[1732069879070,3.0,3098.8,3098.4,0.7607]
[1732069879243,3.0008,3098.8,3098.4,0.7607]
[1732069879425,3.0008,3098.8,3098.4,0.7507]
[1732069879778,12.2398943,3099.8,3098.7,0.7507]
[1732069879779,3.7587,3099.5,3098.7,0.7507]
[1732069880102,3.0,3099.1,3098.7,0.7507]
[1732069880228,0.0008,3099.1,3098.7,0.7507]
[1732069881441,3.0,3099.0,3098.7,0.7507]
[1732069881771,3.622678,3099.0,3098.7,0.7507]
[1732069881966,0.623478,3099.0,3098.7,0.7507]
[1732069882150,0.0008,3099.1,3098.7,0.7507]
[1732069882338,0.0008,3099.1,3098.8,0.01]
[1732069882975,0.0008,3099.1,3099.0,0.01]
[1732069883186,8.57462,3101.2,3099.2,0.02]
[1732069883187,0.0008,3099.9,3099.2,0.02]
[1732069883465,3.22615,3099.7,3099.2,0.01]
[1732069883635,3.22615,3099.7,3099.0,0.7507]
[1732069883636,3.22695,3099.7,3099.0,0.7507]
[1732069883842,3.22634,3099.5,3098.8,0.7507]
[1732069884231,3.22643,3099.4,3098.8,0.7507]
[1732069884332,3.22714,3099.5,3098.8,0.7507]
[1732069884333,3.2266,3099.3,3098.8,0.7507]
[1732069884674,3.0,3099.2,3098.7,0.01]
[1732069885772,6.2267,3099.2,3098.6,0.785]
[1732069885974,0.62274,3099.1,3098.6,0.785]
[1732069886442,0.7556,3099.0,3098.5,0.01]
[1732069886692,3.7556,3099.0,3098.2,0.775]
[1732069886836,0.760596,3098.9,3098.2,0.775]
[1732069887180,3.7556,3098.5,3098.0,0.785]
[1732069887667,0.0008,3098.6,3098.0,0.785]
[1732069889099,6.45482,3098.5,3098.0,0.775]
[1732069889246,3.2279,3098.0,3097.7,0.01]
[1732069889508,3.0,3097.9,3097.7,0.01]
[1732069889630,3.0,3097.9,3097.3,0.775]
[1732069889867,3.98382,3097.7,3097.1,0.01]
[1732069890070,3.98462,3097.7,3097.0,0.785]
[1732069890236,3.2283,3097.6,3097.0,0.785]
[1732069890436,6.22847,3097.5,3097.0,0.775]
[1732069890769,0.622847,3097.4,3097.0,0.785]
[1732069890983,0.7556,3097.1,3096.4,0.01]
[1732069891181,3.7564,3097.1,3096.6,0.01]
[1732069891477,3.0,3096.9,3096.2,0.01]
[1732069891664,6.22985,3096.9,3096.0,0.785]
[1732069891972,6.22939,3096.6,3096.0,0.775]
[1732069892173,0.7556,3096.5,3095.8,0.01]
[1732069892330,1.378539,3096.5,3095.8,0.01]
[1732069892734,3.7556,3096.5,3095.8,0.01]
[1732069892962,3.7556,3096.5,3095.8,0.02]
[1732069893255,0.0008,3096.6,3095.8,0.01]
[1732069893464,3.22953,3096.5,3095.7,0.775]
[1732069893721,0.623033,3096.4,3095.7,0.775]
[1732069893841,3.0008,3096.4,3095.9,0.01]
[1732069894151,0.0008,3096.4,3095.9,0.02]
[1732069894345,3.7564,3096.8,3095.9,0.02]
[1732069894552,1.25156,3096.7,3095.9,0.02]
[1732069895200,3.22884,3097.1,3096.6,0.01]
[1732069895201,0.0008,3097.1,3096.6,0.01]
[1732069895958,0.0008,3097.1,3096.5,0.01]
[1732069895959,0.0008,3097.1,3096.7,0.01]
[1732069896170,0.323744,3097.1,3096.7,0.01]
[1732069896471,0.0008,3097.1,3096.7,0.01]
[1732069897676,0.7556,3097.0,3096.2,0.01]
[1732069897940,3.0,3096.9,3096.2,0.02]
[1732069898052,0.698463,3096.8,3096.2,0.01]
[1732069898238,3.698463,3096.8,3096.0,0.795]
[1732069898442,3.698463,3096.8,3096.0,0.785]
[1732069898443,0.6928303,3096.7,3096.0,0.785]
[1732069898657,0.6936303,3096.7,3096.0,0.785]
[1732069899353,0.6936303,3096.7,3096.2,0.01]
[1732069899553,3.0,3096.9,3096.2,0.01]
[1732069899750,0.7564,3097.0,3096.4,0.01]
[1732069899950,0.0008,3097.1,3096.4,0.01]
[1732069900379,0.0008,3097.1,3096.5,0.7992]
[1732069901285,0.0008,3097.1,3096.7,0.01]
[1732069901585,3.99369,3097.4,3096.6,0.02]
[1732069901884,3.37643,3097.3,3096.8,0.01]
[1732069902295,0.37643,3097.3,3096.8,0.01]
[1732069902641,0.55,3097.6,3096.9,0.7992]
[1732069902840,3.0,3097.3,3096.7,0.01]
[1732069903041,3.22876,3097.2,3096.6,0.01]
[1732069903298,3.0,3097.1,3096.6,0.01]
[1732069903486,3.0008,3097.1,3096.3,0.8092]
[1732069903799,1.387256,3097.0,3095.9,0.01]
[1732069903975,6.22905,3096.9,3096.2,0.01]
[1732069904336,6.22905,3096.9,3095.7,0.7992]